[Event "Live Chess"]
[Site "Chess.com"]
[Date "2023.05.20"]
[Round "-"]
[White "LL220284LL"]
[Black "CheckThis4"]
[Result "0-1"]
[WhiteElo "2392"]
[BlackElo "2546"]
[TimeControl "300"]
[EndTime "13:37:37 PDT"]
[Termination "CheckThis4 won by resignation"]

1. c4 {[%clk 0:04:57.9]} 1... e5 {[%clk 0:04:54]} 2. g3 {[%clk 0:04:54.5]} 2...
Nf6 {[%clk 0:04:49.8]} 3. Bg2 {[%clk 0:04:53.4]} 3... h6 {[%clk 0:04:49.4]} 4.
Nc3 {[%clk 0:04:51.9]} 4... Bb4 {[%clk 0:04:44.3]} 5. Nd5 {[%clk 0:04:49.8]}
5... Nxd5 {[%clk 0:04:42.4]} 6. cxd5 {[%clk 0:04:46.5]} 6... O-O {[%clk
0:04:41.1]} 7. e3 {[%clk 0:04:45.4]} 7... d6 {[%clk 0:04:33]} 8. Ne2 {[%clk
0:04:44.7]} 8... Ba5 {[%clk 0:04:28.5]} 9. O-O {[%clk 0:04:42.9]} 9... Nd7
{[%clk 0:04:23.3]} 10. d4 {[%clk 0:04:41]} 10... Qe7 {[%clk 0:04:20.5]} 11. b3
{[%clk 0:04:38.7]} 11... e4 {[%clk 0:04:13.4]} 12. Bb2 {[%clk 0:04:33.2]} 12...
Nf6 {[%clk 0:04:12]} 13. Rc1 {[%clk 0:04:29.9]} 13... Bf5 {[%clk 0:04:10.5]} 14.
Bc3 {[%clk 0:04:04.9]} 14... Bb6 {[%clk 0:04:08.2]} 15. a4 {[%clk 0:04:00]}
15... a5 {[%clk 0:04:06.8]} 16. Nf4 {[%clk 0:03:50.8]} 16... Rfe8 {[%clk
0:04:04.6]} 17. h3 {[%clk 0:03:43.7]} 17... Qd7 {[%clk 0:04:03.3]} 18. g4 {[%clk
0:03:41.8]} 18... Bh7 {[%clk 0:03:54.8]} 19. Bb2 {[%clk 0:03:24]} 19... g5
{[%clk 0:03:52.4]} 20. Ne2 {[%clk 0:03:22.7]} 20... Nxd5 {[%clk 0:03:51.3]} 21.
Ng3 {[%clk 0:03:19]} 21... Nf6 {[%clk 0:03:45.3]} 22. Qd2 {[%clk 0:03:12.2]}
22... d5 {[%clk 0:03:41.7]} 23. Ba3 {[%clk 0:02:51.3]} 23... c6 {[%clk
0:03:38.6]} 24. Rc2 {[%clk 0:02:46.4]} 24... Bg6 {[%clk 0:03:36.1]} 25. Rfc1
{[%clk 0:02:45]} 25... Bc7 {[%clk 0:03:35.2]} 26. Ne2 {[%clk 0:02:43.2]} 26...
h5 {[%clk 0:03:22.3]} 27. gxh5 {[%clk 0:02:38.3]} 27... Bxh5 {[%clk 0:03:22.2]}
28. Ng3 {[%clk 0:02:37.4]} 28... Bf3 {[%clk 0:03:15.2]} 29. Bf1 {[%clk
0:02:25.4]} 29... Kg7 {[%clk 0:03:13]} 30. b4 {[%clk 0:02:16.3]} 30... Rh8
{[%clk 0:03:08.5]} 31. b5 {[%clk 0:02:13.8]} 31... Rxh3 {[%clk 0:03:03.9]} 32.
bxc6 {[%clk 0:02:12]} 32... bxc6 {[%clk 0:03:01.9]} 33. Rxc6 {[%clk 0:02:10.1]}
33... Bxg3 {[%clk 0:02:59.2]} 34. fxg3 {[%clk 0:02:07.8]} 34... Rxg3+ {[%clk
0:02:56.6]} 35. Kf2 {[%clk 0:02:05.4]} 35... Rh8 {[%clk 0:02:47.7]} 36. Ke1
{[%clk 0:01:41.7]} 36... Rg1 {[%clk 0:02:31.6]} 37. Rc7 {[%clk 0:01:28.8]} 37...
Rxf1+ {[%clk 0:02:12.7]} 38. Kxf1 {[%clk 0:01:24.7]} 38... Qh3+ {[%clk
0:02:11.6]} 0-1

[Event "Live Chess"]
[Site "Chess.com"]
[Date "2023.05.20"]
[Round "-"]
[White "Pandreq"]
[Black "Stanbad1"]
[Result "0-1"]
[WhiteElo "1276"]
[BlackElo "2422"]
[TimeControl "300"]
[EndTime "13:37:43 PDT"]
[Termination "Stanbad1 won by checkmate"]

1. d4 {[%clk 0:04:57.4]} 1... e6 {[%clk 0:04:59.5]} 2. c4 {[%clk 0:04:55.9]}
2... d5 {[%clk 0:04:58.7]} 3. Nc3 {[%clk 0:04:53.9]} 3... Nf6 {[%clk 0:04:57.9]}
4. cxd5 {[%clk 0:04:52.4]} 4... exd5 {[%clk 0:04:56.7]} 5. Bg5 {[%clk
0:04:50.4]} 5... Nbd7 {[%clk 0:04:53.2]} 6. e3 {[%clk 0:04:49.3]} 6... c6 {[%clk
0:04:51.4]} 7. Nf3 {[%clk 0:04:45.5]} 7... Be7 {[%clk 0:04:49.3]} 8. Bd3 {[%clk
0:04:40.5]} 8... Qb6 {[%clk 0:04:30.9]} 9. b3 {[%clk 0:04:36.1]} 9... Bb4 {[%clk
0:04:22.4]} 10. Qc2 {[%clk 0:04:34.4]} 10... Qa5 {[%clk 0:04:20.9]} 11. Rc1
{[%clk 0:04:32.4]} 11... h6 {[%clk 0:04:19.8]} 12. Bh4 {[%clk 0:04:28.2]} 12...
O-O {[%clk 0:04:15.9]} 13. O-O {[%clk 0:04:24.1]} 13... Bxc3 {[%clk 0:04:14.8]}
14. Qxc3 {[%clk 0:04:22.4]} 14... Qxc3 {[%clk 0:04:14.7]} 15. Rxc3 {[%clk
0:04:21]} 15... Re8 {[%clk 0:04:14.6]} 16. Re1 {[%clk 0:04:10.8]} 16... Ne4
{[%clk 0:04:08.5]} 17. Rc2 {[%clk 0:03:55]} 17... f5 {[%clk 0:04:06.1]} 18. Nd2
{[%clk 0:03:52.1]} 18... Ndf6 {[%clk 0:04:04]} 19. Bxf6 {[%clk 0:03:48.5]} 19...
Nxf6 {[%clk 0:04:02]} 20. Nf3 {[%clk 0:03:39.4]} 20... Ne4 {[%clk 0:03:59.2]}
21. Ne5 {[%clk 0:03:34.4]} 21... Be6 {[%clk 0:03:55]} 22. f3 {[%clk 0:03:25.9]}
22... Nd6 {[%clk 0:03:52.8]} 23. e4 {[%clk 0:03:08.9]} 23... fxe4 {[%clk
0:03:47.1]} 24. fxe4 {[%clk 0:03:08]} 24... dxe4 {[%clk 0:03:46.7]} 25. Bxe4
{[%clk 0:03:06.6]} 25... Nxe4 {[%clk 0:03:45.5]} 26. Rxe4 {[%clk 0:03:05.5]}
26... Bf5 {[%clk 0:03:45.4]} 27. Rce2 {[%clk 0:02:44.7]} 27... Bxe4 {[%clk
0:03:42]} 28. Rxe4 {[%clk 0:02:44.6]} 28... Rad8 {[%clk 0:03:41.5]} 29. Rg4
{[%clk 0:02:33.7]} 29... c5 {[%clk 0:03:38.7]} 30. Nf3 {[%clk 0:02:24.6]} 30...
cxd4 {[%clk 0:03:36.6]} 31. Rxd4 {[%clk 0:02:22.2]} 31... Rxd4 {[%clk
0:03:34.4]} 32. Nxd4 {[%clk 0:02:21.4]} 32... Re1+ {[%clk 0:03:34.2]} 33. Kf2
{[%clk 0:02:20.2]} 33... Ra1 {[%clk 0:03:34.1]} 34. a4 {[%clk 0:02:18.1]} 34...
Rd1 {[%clk 0:03:31.4]} 35. Ke3 {[%clk 0:02:13.8]} 35... Kf7 {[%clk 0:03:29.1]}
36. g4 {[%clk 0:02:06]} 36... Kf6 {[%clk 0:03:25.3]} 37. h4 {[%clk 0:02:04.5]}
37... Rh1 {[%clk 0:03:20.9]} 38. Nf3 {[%clk 0:01:57.6]} 38... g5 {[%clk
0:03:16.3]} 39. hxg5+ {[%clk 0:01:51.9]} 39... hxg5 {[%clk 0:03:16.2]} 40. Ke4
{[%clk 0:01:46.7]} 40... Rh3 {[%clk 0:03:07.5]} 41. Nd4 {[%clk 0:01:41.6]} 41...
Rg3 {[%clk 0:03:03]} 42. Nb5 {[%clk 0:01:35.2]} 42... Rxg4+ {[%clk 0:03:01]} 43.
Kf3 {[%clk 0:01:34]} 43... Rb4 {[%clk 0:03:00.5]} 44. Nxa7 {[%clk 0:01:32.2]}
44... Rxb3+ {[%clk 0:02:59.6]} 45. Kg4 {[%clk 0:01:30.2]} 45... Rb4+ {[%clk
0:02:58.7]} 46. Kh5 {[%clk 0:01:27.3]} 46... Rh4# {[%clk 0:02:56.7]} 0-1

[Event "Live Chess"]
[Site "Chess.com"]
[Date "2023.05.20"]
[Round "-"]
[White "SavagePawn7"]
[Black "BostonStrangler"]
[Result "0-1"]
[WhiteElo "795"]
[BlackElo "2052"]
[TimeControl "300"]
[EndTime "13:37:43 PDT"]
[Termination "BostonStrangler won by resignation"]

1. e4 {[%clk 0:04:55.9]} 1... c5 {[%clk 0:04:58.6]} 2. d4 {[%clk 0:04:54.2]}
2... cxd4 {[%clk 0:04:56.5]} 3. c3 {[%clk 0:04:52.9]} 3... d3 {[%clk 0:04:55.9]}
4. Bxd3 {[%clk 0:04:50.5]} 4... Nc6 {[%clk 0:04:54.8]} 5. Nf3 {[%clk 0:04:45.5]}
5... g6 {[%clk 0:04:53]} 6. O-O {[%clk 0:04:43.6]} 6... Bg7 {[%clk 0:04:52.2]}
7. Be3 {[%clk 0:04:31.9]} 7... d6 {[%clk 0:04:49]} 8. Bb5 {[%clk 0:04:10]} 8...
Nf6 {[%clk 0:04:46.7]} 9. e5 {[%clk 0:04:03.2]} 9... dxe5 {[%clk 0:04:45.9]} 10.
Qxd8+ {[%clk 0:04:01.5]} 10... Kxd8 {[%clk 0:04:44.6]} 11. Rd1+ {[%clk
0:03:56.6]} 11... Kc7 {[%clk 0:04:42.8]} 12. Bxc6 {[%clk 0:03:42]} 12... bxc6
{[%clk 0:04:42.7]} 13. Nxe5 {[%clk 0:03:37.2]} 13... Be6 {[%clk 0:04:42.2]} 14.
Nd2 {[%clk 0:03:22.1]} 14... Nd5 {[%clk 0:04:38.5]} 15. Ndf3 {[%clk 0:03:12.9]}
15... Nxe3 {[%clk 0:04:36.6]} 16. fxe3 {[%clk 0:03:11.9]} 16... Rhd8 {[%clk
0:04:33.6]} 17. Rxd8 {[%clk 0:03:08.5]} 17... Rxd8 {[%clk 0:04:33.5]} 18. b4
{[%clk 0:02:48.6]} 18... Bxe5 {[%clk 0:04:26.5]} 19. Nxe5 {[%clk 0:02:46.3]}
19... Rd2 {[%clk 0:04:25.2]} 20. Nc4 {[%clk 0:02:29.7]} 20... Bxc4 {[%clk
0:04:23.4]} 21. Rf1 {[%clk 0:02:24.3]} 21... Bxf1 {[%clk 0:04:21.1]} 0-1

[Event "Live Chess"]
[Site "Chess.com"]
[Date "2023.05.20"]
[Round "-"]
[White "gmnorfolk"]
[Black "SupremeTactician"]
[Result "0-1"]
[WhiteElo "2079"]
[BlackElo "2373"]
[TimeControl "300"]
[EndTime "13:37:44 PDT"]
[Termination "SupremeTactician won by resignation"]

1. d4 {[%clk 0:04:57.2]} 1... Nf6 {[%clk 0:04:58.9]} 2. c4 {[%clk 0:04:53.3]}
2... e6 {[%clk 0:04:58.4]} 3. Nc3 {[%clk 0:04:51.8]} 3... Bb4 {[%clk 0:04:58.2]}
4. e3 {[%clk 0:04:50]} 4... O-O {[%clk 0:04:57.2]} 5. Bd3 {[%clk 0:04:49]} 5...
d5 {[%clk 0:04:56.7]} 6. Nf3 {[%clk 0:04:46.5]} 6... dxc4 {[%clk 0:04:55.6]} 7.
Bxc4 {[%clk 0:04:45.1]} 7... a6 {[%clk 0:04:54.5]} 8. O-O {[%clk 0:04:43.5]}
8... b5 {[%clk 0:04:54]} 9. Bd3 {[%clk 0:04:42.3]} 9... Bb7 {[%clk 0:04:53.6]}
10. Re1 {[%clk 0:04:38.8]} 10... Nbd7 {[%clk 0:04:52.3]} 11. e4 {[%clk 0:04:36]}
11... Bxc3 {[%clk 0:04:45.3]} 12. bxc3 {[%clk 0:04:34.3]} 12... h6 {[%clk
0:04:44.8]} 13. Qe2 {[%clk 0:04:30.1]} 13... Nb6 {[%clk 0:04:43.1]} 14. e5
{[%clk 0:04:25]} 14... Ne8 {[%clk 0:04:32.8]} 15. Bc2 {[%clk 0:04:18.1]} 15...
Rb8 {[%clk 0:04:22.7]} 16. Nd2 {[%clk 0:04:03.8]} 16... Nd5 {[%clk 0:04:13.8]}
17. Qd3 {[%clk 0:03:56.1]} 17... g6 {[%clk 0:04:11.6]} 18. Ne4 {[%clk
0:03:52.8]} 18... Kh7 {[%clk 0:04:03.6]} 19. Qh3 {[%clk 0:03:48.2]} 19... h5
{[%clk 0:03:57]} 20. g4 {[%clk 0:03:34.6]} 20... Ng7 {[%clk 0:03:52.7]} 21. Bg5
{[%clk 0:03:24]} 21... Qd7 {[%clk 0:03:38.2]} 22. Nf6+ {[%clk 0:03:20.3]} 22...
Nxf6 {[%clk 0:03:37.1]} 23. exf6 {[%clk 0:03:18.2]} 23... Qd5 {[%clk 0:03:30.9]}
24. Be4 {[%clk 0:03:02.7]} 24... Qxg5 {[%clk 0:03:27.8]} 25. fxg7 {[%clk
0:02:58.5]} 25... Kxg7 {[%clk 0:03:21.2]} 26. Bxb7 {[%clk 0:02:50.9]} 26... Rxb7
{[%clk 0:03:18.4]} 27. Qg2 {[%clk 0:02:48.6]} 27... Qxg4 {[%clk 0:03:16.7]} 28.
Qxg4 {[%clk 0:02:46.4]} 28... hxg4 {[%clk 0:03:16.6]} 29. Re4 {[%clk 0:02:40.5]}
29... c5 {[%clk 0:03:15.6]} 30. Rxg4 {[%clk 0:02:37.7]} 30... cxd4 {[%clk
0:03:14.9]} 31. Rxd4 {[%clk 0:02:35.4]} 31... Rc8 {[%clk 0:03:13.6]} 32. Rd3
{[%clk 0:02:11.2]} 32... Rbc7 {[%clk 0:03:09.5]} 33. Rc1 {[%clk 0:02:06.2]}
33... b4 {[%clk 0:03:08.7]} 34. c4 {[%clk 0:01:55.6]} 34... Rxc4 {[%clk
0:03:05.6]} 35. Rxc4 {[%clk 0:01:54.7]} 35... Rxc4 {[%clk 0:03:05.5]} 36. Rd6
{[%clk 0:01:54]} 36... a5 {[%clk 0:03:03.6]} 37. Ra6 {[%clk 0:01:53]} 37... Rc5
{[%clk 0:03:02.6]} 0-1

[Event "Live Chess"]
[Site "Chess.com"]
[Date "2023.05.20"]
[Round "-"]
[White "matt1979"]
[Black "manthanit"]
[Result "1-0"]
[WhiteElo "1476"]
[BlackElo "1007"]
[TimeControl "300"]
[EndTime "13:37:52 PDT"]
[Termination "matt1979 won by resignation"]

1. f4 {[%clk 0:04:58.9]} 1... Nh6 {[%clk 0:04:57.5]} 2. Nf3 {[%clk 0:04:54.5]}
2... Nc6 {[%clk 0:04:56.4]} 3. e3 {[%clk 0:04:47.4]} 3... g6 {[%clk 0:04:53.3]}
4. Bb5 {[%clk 0:04:44.8]} 4... Bg7 {[%clk 0:04:50.6]} 5. Bxc6 {[%clk 0:04:43.4]}
5... dxc6 {[%clk 0:04:47.6]} 6. O-O {[%clk 0:04:41.5]} 6... O-O {[%clk
0:04:46.7]} 7. d3 {[%clk 0:04:39.1]} 7... b6 {[%clk 0:04:45.4]} 8. e4 {[%clk
0:04:38]} 8... Bb7 {[%clk 0:04:44.6]} 9. Nc3 {[%clk 0:04:36.2]} 9... c5 {[%clk
0:04:43.9]} 10. Qe1 {[%clk 0:04:33.3]} 10... e6 {[%clk 0:04:40]} 11. Qg3 {[%clk
0:04:15.7]} 11... Ba6 {[%clk 0:04:09.1]} 12. Qh3 {[%clk 0:04:11.5]} 12... f5
{[%clk 0:03:59.5]} 13. Ng5 {[%clk 0:04:03.1]} 13... Qe7 {[%clk 0:03:48.5]} 14.
Rf3 {[%clk 0:03:50.7]} 14... c4 {[%clk 0:03:30.1]} 15. Ne2 {[%clk 0:03:29.5]}
15... cxd3 {[%clk 0:03:28.2]} 16. cxd3 {[%clk 0:03:28.5]} 16... Rad8 {[%clk
0:03:25.4]} 17. Rb1 {[%clk 0:03:20.7]} 17... Bxd3 {[%clk 0:03:23.3]} 18. Rxd3
{[%clk 0:03:18.5]} 18... Rxd3 {[%clk 0:03:13.2]} 19. Qxd3 {[%clk 0:03:17]} 19...
c5 {[%clk 0:03:10.3]} 20. Bd2 {[%clk 0:03:03.7]} 20... fxe4 {[%clk 0:03:09]} 21.
Nxe4 {[%clk 0:02:57.8]} 21... Ng4 {[%clk 0:03:03.7]} 22. Bc3 {[%clk 0:02:53.2]}
22... Qh4 {[%clk 0:03:00.6]} 23. Qg3 {[%clk 0:02:43.8]} 23... Qxg3 {[%clk
0:02:41.5]} 24. N2xg3 {[%clk 0:02:41.4]} 24... Rd8 {[%clk 0:02:08]} 25. Bxg7
{[%clk 0:02:38.7]} 25... Kxg7 {[%clk 0:02:06.8]} 26. h3 {[%clk 0:02:30.4]} 26...
Ne3 {[%clk 0:02:03.8]} 27. Kf2 {[%clk 0:02:26.9]} 27... Nc2 {[%clk 0:01:53.5]}
28. Rc1 {[%clk 0:02:13]} 28... Nd4 {[%clk 0:01:51.1]} 29. Ne2 {[%clk 0:02:08.1]}
29... h6 {[%clk 0:01:39.3]} 30. Nxd4 {[%clk 0:02:06.6]} 30... Rxd4 {[%clk
0:01:36.4]} 31. Ke3 {[%clk 0:02:04.7]} 31... g5 {[%clk 0:01:19.4]} 32. g3 {[%clk
0:02:01.2]} 32... e5 {[%clk 0:01:14.4]} 33. f5 {[%clk 0:01:56.6]} 33... h5
{[%clk 0:01:09]} 34. g4 {[%clk 0:01:54.5]} 34... hxg4 {[%clk 0:01:07.1]} 35.
hxg4 {[%clk 0:01:53.4]} 35... Rd8 {[%clk 0:00:59]} 36. Rc2 {[%clk 0:01:47.7]}
36... Kf7 {[%clk 0:00:54.5]} 37. Rd2 {[%clk 0:01:45.1]} 37... Ke7 {[%clk
0:00:51.3]} 38. Rxd8 {[%clk 0:01:42.4]} 38... Kxd8 {[%clk 0:00:50]} 1-0

[Event "Live Chess"]
[Site "Chess.com"]
[Date "2023.05.20"]
[Round "-"]
[White "Missedidea"]
[Black "xx_blindpuffin_xx"]
[Result "0-1"]
[WhiteElo "1801"]
[BlackElo "2196"]
[TimeControl "300"]
[EndTime "13:38:02 PDT"]
[Termination "xx_blindpuffin_xx won on time"]

1. d4 {[%clk 0:04:58.3]} 1... d5 {[%clk 0:04:59.1]} 2. c4 {[%clk 0:04:56.9]}
2... e6 {[%clk 0:04:57.6]} 3. Nc3 {[%clk 0:04:55.2]} 3... c6 {[%clk 0:04:57.1]}
4. Nf3 {[%clk 0:04:53.4]} 4... dxc4 {[%clk 0:04:56.3]} 5. a4 {[%clk 0:04:48.8]}
5... Bb4 {[%clk 0:04:54.7]} 6. e4 {[%clk 0:04:46.2]} 6... b5 {[%clk 0:04:53.3]}
7. Bd2 {[%clk 0:04:33.4]} 7... Nf6 {[%clk 0:04:49.9]} 8. Qc2 {[%clk 0:04:27.1]}
8... Bb7 {[%clk 0:04:46.8]} 9. e5 {[%clk 0:03:55.3]} 9... Nd5 {[%clk 0:04:39]}
10. Be2 {[%clk 0:03:51.2]} 10... Bxc3 {[%clk 0:04:34.2]} 11. bxc3 {[%clk
0:03:49.3]} 11... Nd7 {[%clk 0:04:30.9]} 12. O-O {[%clk 0:03:45.6]} 12... O-O
{[%clk 0:04:26.9]} 13. Ng5 {[%clk 0:03:41.5]} 13... g6 {[%clk 0:04:24.7]} 14.
Ne4 {[%clk 0:03:39.4]} 14... f5 {[%clk 0:03:50.5]} 15. Nd6 {[%clk 0:03:17.9]}
15... Qb6 {[%clk 0:03:48.1]} 16. Rfb1 {[%clk 0:02:52.1]} 16... a6 {[%clk
0:03:46.3]} 17. Bxc4 {[%clk 0:02:48.3]} 17... Qc7 {[%clk 0:03:45.8]} 18. Bb3
{[%clk 0:02:35.8]} 18... N7b6 {[%clk 0:03:40.8]} 19. a5 {[%clk 0:02:31.3]} 19...
Nc8 {[%clk 0:03:37.5]} 20. Nxc8 {[%clk 0:02:16.1]} 20... Raxc8 {[%clk
0:03:37.4]} 21. c4 {[%clk 0:02:14.7]} 21... Ne7 {[%clk 0:03:29.2]} 22. cxb5
{[%clk 0:02:05.4]} 22... Nd5 {[%clk 0:03:21.9]} 23. b6 {[%clk 0:01:59.9]} 23...
Qf7 {[%clk 0:03:20.5]} 24. f4 {[%clk 0:01:52.5]} 24... Rfd8 {[%clk 0:03:17.1]}
25. Rc1 {[%clk 0:01:45.3]} 25... g5 {[%clk 0:03:10.3]} 26. Bxd5 {[%clk
0:01:27.5]} 26... cxd5 {[%clk 0:03:08.4]} 27. Qd3 {[%clk 0:01:23.3]} 27... gxf4
{[%clk 0:03:07]} 28. Bxf4 {[%clk 0:01:19.3]} 28... Kh8 {[%clk 0:03:06.3]} 29.
Rc5 {[%clk 0:01:00.8]} 29... Rxc5 {[%clk 0:02:55.7]} 30. dxc5 {[%clk 0:00:58.8]}
30... d4 {[%clk 0:02:55.1]} 31. Bg5 {[%clk 0:00:54.7]} 31... Rd5 {[%clk
0:02:23.3]} 32. Bf6+ {[%clk 0:00:52.7]} 32... Kg8 {[%clk 0:02:21.8]} 33. Rc1
{[%clk 0:00:44.7]} 33... Bc6 {[%clk 0:02:17.3]} 34. Qxa6 {[%clk 0:00:38.2]}
34... Bb7 {[%clk 0:01:50.9]} 35. Qd3 {[%clk 0:00:35.4]} 35... Bc6 {[%clk
0:01:45.3]} 36. a6 {[%clk 0:00:32.1]} 36... Qf8 {[%clk 0:01:28.3]} 37. b7 {[%clk
0:00:28.3]} 37... Rd7 {[%clk 0:01:16]} 38. Qb3 {[%clk 0:00:12.1]} 38... Bd5
{[%clk 0:00:59.3]} 39. b8=Q {[%clk 0:00:09.1]} 39... Bxb3 {[%clk 0:00:57.8]} 40.
Qxb3 {[%clk 0:00:04.2]} 40... d3 {[%clk 0:00:56.8]} 41. Qxe6+ {[%clk 0:00:01.5]}
41... Rf7 {[%clk 0:00:54.7]} 0-1

[Event "Live Chess"]
[Site "Chess.com"]
[Date "2023.05.20"]
[Round "-"]
[White "ExIsambard"]
[Black "Tema1107"]
[Result "1-0"]
[WhiteElo "1988"]
[BlackElo "1962"]
[TimeControl "300"]
[EndTime "13:38:02 PDT"]
[Termination "ExIsambard won by resignation"]

1. d4 {[%clk 0:04:59.2]} 1... d5 {[%clk 0:04:59.4]} 2. Bg5 {[%clk 0:04:57.8]}
2... Nf6 {[%clk 0:04:59.3]} 3. e3 {[%clk 0:04:56.8]} 3... e6 {[%clk 0:04:58.3]}
4. Bd3 {[%clk 0:04:55.8]} 4... c5 {[%clk 0:04:57.1]} 5. c3 {[%clk 0:04:54.6]}
5... Nc6 {[%clk 0:04:55.3]} 6. Nf3 {[%clk 0:04:53.1]} 6... Be7 {[%clk
0:04:53.9]} 7. Nbd2 {[%clk 0:04:52]} 7... O-O {[%clk 0:04:51.1]} 8. h4 {[%clk
0:04:50.8]} 8... b6 {[%clk 0:04:47.9]} 9. Qe2 {[%clk 0:04:49.4]} 9... Bb7 {[%clk
0:04:45.6]} 10. O-O-O {[%clk 0:04:47.2]} 10... Rc8 {[%clk 0:04:43.8]} 11. Kb1
{[%clk 0:04:45.9]} 11... c4 {[%clk 0:04:42]} 12. Bc2 {[%clk 0:04:44.7]} 12... b5
{[%clk 0:04:41.5]} 13. Bxf6 {[%clk 0:04:33.4]} 13... Bxf6 {[%clk 0:04:19.7]} 14.
Ng5 {[%clk 0:04:32.1]} 14... h6 {[%clk 0:04:15.2]} 15. Nh7 {[%clk 0:04:29.8]}
15... Re8 {[%clk 0:04:13.4]} 16. Nxf6+ {[%clk 0:04:27.9]} 16... Qxf6 {[%clk
0:04:13.3]} 17. g4 {[%clk 0:04:27]} 17... g6 {[%clk 0:04:05.4]} 18. g5 {[%clk
0:04:25.3]} 18... hxg5 {[%clk 0:03:53.3]} 19. hxg5 {[%clk 0:04:24]} 19... Qxg5
{[%clk 0:03:53.2]} 20. f4 {[%clk 0:04:22.7]} 20... Qf6 {[%clk 0:03:51.4]} 21.
Rdg1 {[%clk 0:04:20]} 21... Kf8 {[%clk 0:03:40.7]} 22. Nf3 {[%clk 0:04:01.8]}
22... b4 {[%clk 0:03:37.6]} 23. Ng5 {[%clk 0:03:57.5]} 23... Ke7 {[%clk
0:03:29.5]} 24. Rh7 {[%clk 0:03:53.6]} 24... Rf8 {[%clk 0:03:28.5]} 25. Nf3
{[%clk 0:03:33.8]} 25... Kd8 {[%clk 0:02:20.3]} 26. Bxg6 {[%clk 0:03:12.2]}
26... Rb8 {[%clk 0:01:39.8]} 27. Bc2 {[%clk 0:02:28]} 27... Bc8 {[%clk
0:01:31.8]} 28. Ka1 {[%clk 0:02:16.3]} 28... Qe7 {[%clk 0:01:25.9]} 29. Ba4
{[%clk 0:01:53.6]} 29... bxc3 {[%clk 0:01:16.8]} 30. Rb1 {[%clk 0:01:32.7]}
30... cxb2+ {[%clk 0:00:41.2]} 31. Rxb2 {[%clk 0:01:28.1]} 31... Rxb2 {[%clk
0:00:41.1]} 32. Qxb2 {[%clk 0:01:26]} 32... Nb4 {[%clk 0:00:41]} 33. Ne5 {[%clk
0:01:20.5]} 33... Qc7 {[%clk 0:00:34.4]} 34. Qxb4 {[%clk 0:01:14.8]} 1-0

[Event "Live Chess"]
[Site "Chess.com"]
[Date "2023.05.20"]
[Round "-"]
[White "Tushinskiy"]
[Black "wadsy27"]
[Result "1-0"]
[WhiteElo "2121"]
[BlackElo "2539"]
[TimeControl "300"]
[EndTime "13:38:11 PDT"]
[Termination "Tushinskiy won on time"]

1. d4 {[%clk 0:04:55.3]} 1... d5 {[%clk 0:04:50.8]} 2. c3 {[%clk 0:04:55.2]}
2... Nf6 {[%clk 0:04:48.8]} 3. Nf3 {[%clk 0:04:52.5]} 3... c6 {[%clk 0:04:47]}
4. Bf4 {[%clk 0:04:51.9]} 4... Nh5 {[%clk 0:04:41.7]} 5. Bg3 {[%clk 0:04:49]}
5... Qb6 {[%clk 0:04:26.5]} 6. Qc1 {[%clk 0:04:47.4]} 6... Nxg3 {[%clk
0:04:24.7]} 7. hxg3 {[%clk 0:04:46.3]} 7... Bf5 {[%clk 0:04:21.5]} 8. Nbd2
{[%clk 0:04:45.3]} 8... h6 {[%clk 0:04:14.8]} 9. e3 {[%clk 0:04:44.1]} 9... Nd7
{[%clk 0:04:13.3]} 10. Be2 {[%clk 0:04:43.4]} 10... e6 {[%clk 0:04:12.5]} 11.
O-O {[%clk 0:04:42.8]} 11... Bd6 {[%clk 0:04:11.7]} 12. b4 {[%clk 0:04:42]}
12... a5 {[%clk 0:04:04.8]} 13. a3 {[%clk 0:04:40.9]} 13... a4 {[%clk
0:03:58.1]} 14. c4 {[%clk 0:04:38.7]} 14... dxc4 {[%clk 0:03:40.9]} 15. Nxc4
{[%clk 0:04:38.6]} 15... Qc7 {[%clk 0:03:39.7]} 16. Re1 {[%clk 0:04:36.9]} 16...
Nf6 {[%clk 0:03:35]} 17. Bf1 {[%clk 0:04:35.6]} 17... O-O {[%clk 0:03:32.8]} 18.
Qb2 {[%clk 0:04:32.9]} 18... Be4 {[%clk 0:03:18.4]} 19. Rac1 {[%clk 0:04:31.5]}
19... b5 {[%clk 0:03:01.4]} 20. Ncd2 {[%clk 0:04:27.2]} 20... Qd7 {[%clk
0:02:44.6]} 21. Nxe4 {[%clk 0:04:25.4]} 21... Nxe4 {[%clk 0:02:43.1]} 22. Bd3
{[%clk 0:04:24.8]} 22... Nf6 {[%clk 0:02:41.7]} 23. Rc2 {[%clk 0:04:21.3]} 23...
Rac8 {[%clk 0:02:31.2]} 24. Rec1 {[%clk 0:04:20.3]} 24... Nd5 {[%clk 0:02:26.4]}
25. Be4 {[%clk 0:04:17.8]} 25... f5 {[%clk 0:02:21.5]} 26. Bxd5 {[%clk 0:04:13]}
26... cxd5 {[%clk 0:02:18.6]} 27. Rc3 {[%clk 0:04:10.4]} 27... Rc4 {[%clk
0:01:54.4]} 28. Rxc4 {[%clk 0:04:03.2]} 28... dxc4 {[%clk 0:01:50.9]} 29. Qc2
{[%clk 0:04:00.6]} 29... Qb7 {[%clk 0:01:47.5]} 30. Rd1 {[%clk 0:03:58]} 30...
Qd5 {[%clk 0:01:42.3]} 31. Nh4 {[%clk 0:03:48.2]} 31... Rf6 {[%clk 0:01:36.3]}
32. Nf3 {[%clk 0:03:43.5]} 32... g5 {[%clk 0:01:26.8]} 33. Re1 {[%clk
0:03:41.9]} 33... Kg7 {[%clk 0:01:20.8]} 34. e4 {[%clk 0:03:38.4]} 34... fxe4
{[%clk 0:01:19.6]} 35. Rxe4 {[%clk 0:03:38.3]} 35... Qf5 {[%clk 0:00:53.6]} 36.
Qe2 {[%clk 0:03:27.8]} 36... h5 {[%clk 0:00:43.2]} 37. Ne5 {[%clk 0:03:20.6]}
37... g4 {[%clk 0:00:41.1]} 38. Nd3 {[%clk 0:03:12.4]} 38... Qd5 {[%clk
0:00:37]} 39. Nc5 {[%clk 0:03:06]} 39... Bxc5 {[%clk 0:00:35.6]} 40. bxc5 {[%clk
0:02:47.6]} 40... Kf7 {[%clk 0:00:33.7]} 41. Kh2 {[%clk 0:02:33.7]} 41... Rf5
{[%clk 0:00:32.7]} 42. Qc2 {[%clk 0:02:24.4]} 42... c3 {[%clk 0:00:30.2]} 43.
Re3 {[%clk 0:02:12.2]} 43... Qxd4 {[%clk 0:00:28.9]} 44. Rxc3 {[%clk 0:02:11.3]}
44... Rxf2 {[%clk 0:00:22.1]} 45. Qh7+ {[%clk 0:02:09.5]} 45... Ke8 {[%clk
0:00:20]} 46. Qg6+ {[%clk 0:02:05.6]} 46... Ke7 {[%clk 0:00:18.7]} 47. Rd3
{[%clk 0:01:59.5]} 47... Qb2 {[%clk 0:00:14]} 48. Qh7+ {[%clk 0:01:53.4]} 48...
Rf7 {[%clk 0:00:13]} 49. Qe4 {[%clk 0:01:49.7]} 49... b4 {[%clk 0:00:11.9]} 50.
c6 {[%clk 0:01:42.2]} 50... bxa3 {[%clk 0:00:10]} 51. c7 {[%clk 0:01:41.4]}
51... Qc1 {[%clk 0:00:08.4]} 52. Qb4+ {[%clk 0:01:36.8]} 52... Kf6 {[%clk
0:00:07.5]} 53. Rc3 {[%clk 0:01:31.6]} 53... Rxc7 {[%clk 0:00:04.2]} 54. Rxc1
{[%clk 0:01:30.1]} 54... Rxc1 {[%clk 0:00:04.1]} 55. Qf4+ {[%clk 0:01:28.5]}
55... Kg6 {[%clk 0:00:02.7]} 56. Qxc1 {[%clk 0:01:28.4]} 1-0